fUSD/lending_fUSD_20260622
["ID","MTS","AMOUNT","RATE_DAILY","PERIOD"]
[425986930,1782075046000,-1672.7364795,0.00017585,2]
[425986942,1782075046000,-200.0,0.00018285,2]
[425986936,1782075046000,-2953.57,0.00018067,2]
[425986943,1782075046000,-185.39,0.00018348,2]
[425986951,1782075046000,-276.34,0.00018729,2]
[425986949,1782075046000,-483.58416662,0.00018681,2]
[425986969,1782075046000,-500.0,0.00019777,2]
[425986968,1782075046000,-151.0,0.00019777,2]
[425986965,1782075046000,-151.0,0.00019777,2]
[425986945,1782075046000,-171.9,0.0001841,2]
[425986967,1782075046000,-151.0,0.00019777,2]
[425986961,1782075046000,-160.28983193,0.00019098,2]
[425986960,1782075046000,-1276.0,0.00019098,2]
[425986963,1782075046000,-166.66,0.00019484,2]
[425986966,1782075046000,-151.0,0.00019777,2]
[425986964,1782075046000,-151.0,0.00019777,2]
[425986956,1782075046000,-449.6976,0.00018993,2]
[425986954,1782075046000,-222.1773484,0.00018993,2]
[425986953,1782075046000,-166.67,0.00018752,2]
[425986950,1782075046000,-157.36,0.00018687,2]
[425986952,1782075046000,-166.66,0.00018742,2]
[425986955,1782075046000,-332.36402565,0.00018993,2]
[425986959,1782075046000,-6689.72155933,0.00019098,2]
[425986962,1782075046000,-166.66,0.00019113,2]
[425986975,1782075047000,-151.0,0.00019777,2]
[425986976,1782075047000,-23.53491335,0.00019777,2]
[425986974,1782075047000,-151.0,0.00019777,2]
[425986978,1782075047000,-151.0,0.00019777,2]
[425986979,1782075047000,-151.0,0.00019777,2]
[425986971,1782075047000,-151.0,0.00019777,2]
[425986972,1782075047000,-151.0,0.00019777,2]
[425986973,1782075047000,-151.0,0.00019777,2]
[425986970,1782075047000,-151.0,0.00019777,2]
[425986981,1782075047000,-151.0,0.00019777,2]
[425986977,1782075047000,-127.46508665,0.00019777,2]
[425986989,1782075047000,-151.0,0.00019777,2]
[425986987,1782075047000,-151.0,0.00019777,2]
[425986992,1782075047000,-151.0,0.00019777,2]
[425986994,1782075047000,-151.0,0.00019777,2]
[425986993,1782075047000,-151.0,0.00019777,2]
[425986995,1782075047000,-151.0,0.00019777,2]
[425986983,1782075047000,-151.0,0.00019777,2]
[425986988,1782075047000,-151.0,0.00019777,2]
[425986997,1782075047000,-44.18996233,0.00019777,2]
[425986984,1782075047000,-151.0,0.00019777,2]
[425986990,1782075047000,-151.0,0.00019777,2]
[425986991,1782075047000,-151.0,0.00019777,2]
[425986996,1782075047000,-151.0,0.00019777,2]
[425986986,1782075047000,-151.0,0.00019777,2]
[425986985,1782075047000,-151.0,0.00019777,2]
[425986999,1782075064000,294.79223382,0.00010799,2]
[425986998,1782075064000,500.0,0.00010799,2]
[425987000,1782075074000,500.0,0.00010799,2]
[425987008,1782075074000,500.0,0.00010799,2]
[425987006,1782075074000,500.0,0.00010799,2]
[425987005,1782075074000,500.0,0.00010799,2]
[425987004,1782075074000,616.518713,0.00010799,2]
[425987003,1782075074000,500.0,0.00010799,2]
[425987001,1782075074000,500.0,0.00010799,2]
[425987002,1782075074000,500.0,0.00010799,2]
[425987007,1782075074000,500.0,0.00010799,2]
[425987009,1782075100000,500.0,0.00010799,2]
[425987010,1782075100000,478.24648614,0.00010799,2]
[425987011,1782075103000,162.791075,0.00010799,2]
[425987012,1782075113000,188.92338473,0.00010799,2]
[425987013,1782075190000,369.95,0.00027772,120]
[425987014,1782075338000,203.96,0.00025711,120]
[425987019,1782075781000,150.0,0.00030136,120]
[425987036,1782076224000,150.0,0.00030136,120]
[425987072,1782076231000,-151.0,0.00012813,2]
[425987068,1782076231000,-150.0,0.00012813,2]
[425987071,1782076231000,-151.0,0.00012813,2]
[425987078,1782076231000,-150.0,0.00012813,2]
[425987077,1782076231000,-150.0,0.00012813,2]
[425987076,1782076231000,-151.0,0.00012813,2]
[425987073,1782076231000,-151.0,0.00012813,2]
[425987081,1782076231000,-334.29,0.00012813,2]
[425987079,1782076231000,-151.0,0.00012813,2]
[425987075,1782076231000,-153.0,0.00012813,2]
[425987070,1782076231000,-1.06282284,0.00012813,2]
[425987080,1782076231000,-151.0,0.00012813,2]
[425987082,1782076231000,-216.32317309,0.00012816,2]
[425987083,1782076231000,-150.0,0.00012943,2]
[425987085,1782076231000,-150.0,0.00013071,2]
[425987074,1782076231000,-150.0,0.00012813,2]
[425987067,1782076231000,-151.0,0.00012813,2]
[425987054,1782076231000,-150.0,0.00012811,2]
[425987065,1782076231000,-153.0,0.00012812,2]
[425987051,1782076231000,-512.94652367,0.00012811,2]
[425987095,1782076231000,-500.0,0.00013486,2]
[425987052,1782076231000,-150.0,0.00012811,2]
[425987055,1782076231000,-150.0,0.00012811,2]
[425987053,1782076231000,-150.0,0.00012811,2]
[425987062,1782076231000,-151.0,0.00012812,2]
[425987056,1782076231000,-151.0,0.00012811,2]
[425987061,1782076231000,-151.0,0.00012812,2]
[425987058,1782076231000,-150.0,0.00012812,2]
[425987059,1782076231000,-151.0,0.00012812,2]
[425987060,1782076231000,-152.0,0.00012812,2]
[425987057,1782076231000,-151.0,0.00012811,2]
[425987064,1782076231000,-152.0,0.00012812,2]
[425987063,1782076231000,-152.0,0.00012812,2]
[425987069,1782076231000,-148.93717716,0.00012813,2]
[425987066,1782076231000,-153.0,0.00012813,2]
[425987084,1782076231000,-334.29,0.00012981,2]
[425987119,1782076231000,-166.66,0.00013771,2]
[425987099,1782076231000,-166.66,0.00013487,2]
[425987109,1782076231000,-152.0,0.00013491,2]
[425987105,1782076231000,-150.0,0.00013487,2]
[425987116,1782076231000,-203.8,0.00013699,2]
[425987120,1782076231000,-166.66,0.00014055,2]
[425987121,1782076231000,-150.14728826,0.00014092,2]
[425987122,1782076231000,-600.0,0.00014093,2]
[425987123,1782076231000,-600.0,0.00014093,2]
[425987128,1782076231000,-300.0,0.00014093,2]
[425987130,1782076231000,-300.0,0.00014093,2]
[425987129,1782076231000,-300.0,0.00014093,2]
[425987126,1782076231000,-600.0,0.00014093,2]
[425987124,1782076231000,-600.0,0.00014093,2]
[425987125,1782076231000,-600.0,0.00014093,2]
[425987127,1782076231000,-300.0,0.00014093,2]
[425987097,1782076231000,-184.7725403,0.00013486,2]
[425987114,1782076231000,-293.47,0.00013699,2]
[425987113,1782076231000,-334.29,0.00013689,2]
[425987118,1782076231000,-849.18,0.00013699,2]
[425987101,1782076231000,-151.0,0.00013487,2]
[425987086,1782076231000,-150.0,0.000132,2]
[425987117,1782076231000,-169.83,0.00013699,2]
[425987092,1782076231000,-254.0,0.00013456,2]
[425987091,1782076231000,-150.0,0.00013328,2]
[425987090,1782076231000,-185.39,0.00013299,2]
[425987093,1782076231000,-556.35456367,0.00013486,2]
[425987087,1782076231000,-217.03,0.00013267,2]
[425987089,1782076231000,-295.96,0.00013297,2]
[425987088,1782076231000,-334.29,0.0001329,2]
[425987110,1782076231000,-152.0,0.00013504,2]
[425987103,1782076231000,-151.0,0.00013487,2]
[425987115,1782076231000,-244.56,0.00013699,2]
[425987111,1782076231000,-151.0,0.00013558,2]
[425987112,1782076231000,-500.0,0.00013558,2]
[425987107,1782076231000,-150.0,0.00013487,2]
[425987108,1782076231000,-150.0,0.00013488,2]
[425987176,1782076232000,-314.0,0.00014899,2]
[425987175,1782076232000,-317.0,0.00014899,2]
[425987165,1782076232000,-314.0,0.00014899,2]
[425987158,1782076232000,-317.0,0.00014898,2]
[425987162,1782076232000,-313.0,0.00014899,2]
[425987161,1782076232000,-151.0,0.00014899,2]
[425987160,1782076232000,-309.0,0.00014898,2]
[425987159,1782076232000,-150.0,0.00014898,2]
[425987164,1782076232000,-152.0,0.00014899,2]
[425987163,1782076232000,-311.0,0.00014899,2]
[425987166,1782076232000,-318.0,0.00014899,2]
[425987171,1782076232000,-150.0,0.00014899,2]
[425987173,1782076232000,-313.0,0.00014899,2]
[425987170,1782076232000,-309.0,0.00014899,2]
[425987168,1782076232000,-312.0,0.00014899,2]
[425987172,1782076232000,-313.0,0.00014899,2]
[425987169,1782076232000,-312.0,0.00014899,2]
[425987174,1782076232000,-151.0,0.00014899,2]
[425987182,1782076232000,-315.0,0.000149,2]
[425987184,1782076232000,-153.0,0.000149,2]
[425987179,1782076232000,-309.0,0.00014899,2]
[425987177,1782076232000,-318.0,0.00014899,2]
[425987167,1782076232000,-150.0,0.00014899,2]
[425987155,1782076232000,-151.0,0.00014898,2]
[425987140,1782076232000,-152.0,0.00014897,2]
[425987154,1782076232000,-317.0,0.00014898,2]
[425987183,1782076232000,-311.0,0.000149,2]
[425987139,1782076232000,-151.0,0.00014897,2]
[425987131,1782076232000,-300.0,0.00014093,2]
[425987133,1782076232000,-166.66,0.00014339,2]
[425987132,1782076232000,-334.29,0.00014161,2]
[425987138,1782076232000,-150.0,0.00014897,2]
[425987135,1782076232000,-166.66,0.00014623,2]
[425987136,1782076232000,-1000.0,0.000147,5]
[425987134,1782076232000,-500.0,0.000146,5]
[425987137,1782076232000,-1500.0,0.000148,5]
[425987142,1782076232000,-320.0,0.00014897,2]
[425987157,1782076232000,-312.0,0.00014898,2]
[425987152,1782076232000,-150.0,0.00014898,2]
[425987146,1782076232000,-318.0,0.00014897,2]
[425987147,1782076232000,-500.0,0.00014898,2]
[425987145,1782076232000,-316.0,0.00014897,2]
[425987141,1782076232000,-313.0,0.00014897,2]
[425987144,1782076232000,-315.0,0.00014897,2]
[425987148,1782076232000,-150.0,0.00014898,2]
[425987151,1782076232000,-311.0,0.00014898,2]
[425987150,1782076232000,-309.0,0.00014898,2]
[425987149,1782076232000,-318.0,0.00014898,2]
[425987153,1782076232000,-313.0,0.00014898,2]
[425987156,1782076232000,-309.0,0.00014898,2]
[425987143,1782076232000,-318.0,0.00014897,2]
[425987180,1782076232000,-309.0,0.00014899,2]
[425987207,1782076232000,-319.0,0.00014923,2]
[425987178,1782076232000,-477.2524228,0.00014899,2]
[425987217,1782076232000,-153.0,0.00014999,2]
[425987213,1782076232000,-317.0,0.00014999,2]
[425987223,1782076232000,-314.0,0.00014999,2]
[425987214,1782076232000,-151.0,0.00014999,2]
[425987221,1782076232000,-150.0,0.00014999,2]
[425987220,1782076232000,-318.0,0.00014999,2]
[425987216,1782076232000,-321.0,0.00014999,2]
[425987215,1782076232000,-317.0,0.00014999,2]
[425987224,1782076232000,-151.0,0.00014999,2]
[425987219,1782076232000,-317.0,0.00014999,2]
[425987225,1782076232000,-313.0,0.00014999,2]
[425987222,1782076232000,-320.0,0.00014999,2]
[425987234,1782076232000,-500.0,0.00014999,2]
[425987233,1782076232000,-500.0,0.00014999,2]
[425987232,1782076232000,-500.0,0.00014999,2]
[425987228,1782076232000,-151.0,0.00014999,2]
[425987227,1782076232000,-320.0,0.00014999,2]
[425987226,1782076232000,-315.0,0.00014999,2]
[425987229,1782076232000,-502.37309747,0.00014999,2]
[425987235,1782076232000,-383.80814629,0.00014999,2]
[425987230,1782076232000,-500.0,0.00014999,2]
[425987231,1782076232000,-500.0,0.00014999,2]
[425987181,1782076232000,-152.0,0.000149,2]
[425987211,1782076232000,-310.42562231,0.0001499,2]
[425987212,1782076232000,-151.0,0.00014999,2]
[425987218,1782076232000,-310.0,0.00014999,2]
[425987209,1782076232000,-317.0,0.00014923,2]
[425987185,1782076232000,-321.0,0.000149,2]
[425987187,1782076232000,-151.0,0.000149,2]
[425987210,1782076232000,-295.96,0.00014959,2]
[425987188,1782076232000,-316.0,0.000149,2]
[425987190,1782076232000,-318.0,0.000149,2]
[425987189,1782076232000,-311.0,0.000149,2]
[425987191,1782076232000,-151.0,0.000149,2]
[425987193,1782076232000,-316.0,0.000149,2]
[425987192,1782076232000,-314.0,0.000149,2]
[425987194,1782076232000,-151.0,0.000149,2]
[425987196,1782076232000,-179.38868994,0.000149,2]
[425987195,1782076232000,-318.0,0.000149,2]
[425987186,1782076232000,-314.0,0.000149,2]
[425987199,1782076232000,-2000.0,0.000149,5]
[425987197,1782076232000,-662.41409633,0.000149,2]
[425987208,1782076232000,-319.0,0.00014923,2]
[425987205,1782076232000,-1738.796257,0.000149,2]
[425987204,1782076232000,-1227.786385,0.000149,2]
[425987202,1782076232000,-640.9281,0.000149,2]
[425987206,1782076232000,-166.66,0.00014907,2]
[425987198,1782076232000,-1178.56611166,0.000149,2]
[425987201,1782076232000,-194.64603168,0.000149,2]
[425987200,1782076232000,-291.72610935,0.000149,2]
[425987203,1782076232000,-13170.57731844,0.000149,2]
[425987248,1782076233000,-500.0,0.00014999,2]
[425987256,1782076233000,-500.0,0.00014999,2]
[425987253,1782076233000,-239.81929128,0.00014999,2]
[425987257,1782076233000,-319.55370361,0.00014999,2]
[425987260,1782076233000,-500.0,0.00014999,2]
[425987250,1782076233000,-500.0,0.00014999,2]
[425987259,1782076233000,-500.0,0.00014999,2]
[425987249,1782076233000,-433.29599545,0.00014999,2]
[425987246,1782076233000,-500.0,0.00014999,2]
[425987240,1782076233000,-500.0,0.00014999,2]
[425987243,1782076233000,-500.0,0.00014999,2]
[425987241,1782076233000,-500.0,0.00014999,2]
[425987245,1782076233000,-500.0,0.00014999,2]
[425987238,1782076233000,-500.0,0.00014999,2]
[425987239,1782076233000,-500.0,0.00014999,2]
[425987236,1782076233000,-516.50658235,0.00014999,2]
[425987247,1782076233000,-500.0,0.00014999,2]
[425987237,1782076233000,-550.72092856,0.00014999,2]
[425987252,1782076233000,-500.0,0.00014999,2]
[425987242,1782076233000,-500.0,0.00014999,2]
[425987255,1782076233000,-500.0,0.00014999,2]
[425987244,1782076233000,-500.0,0.00014999,2]
[425987254,1782076233000,-500.0,0.00014999,2]
[425987258,1782076233000,-500.0,0.00014999,2]
[425987280,1782076233000,-671.21968653,0.00015,2]
[425987278,1782076233000,-390.37,0.00015,2]
[425987279,1782076233000,-151.0,0.00012811,2]
[425987273,1782076233000,-95029.36292607,0.00015,2]
[425987277,1782076233000,-1702.86816105,0.00015,2]
[425987275,1782076233000,-12135.95426429,0.00015,2]
[425987274,1782076233000,-1254.41808677,0.00015,2]
[425987272,1782076233000,-310.0,0.00014999,2]
[425987263,1782076233000,-500.0,0.00014999,2]
[425987276,1782076233000,-9262.90087722,0.00015,2]
[425987268,1782076233000,-500.0,0.00014999,2]
[425987270,1782076233000,-316.0,0.00014999,2]
[425987271,1782076233000,-309.0,0.00014999,2]
[425987265,1782076233000,-500.0,0.00014999,2]
[425987266,1782076233000,-500.0,0.00014999,2]
[425987251,1782076233000,-500.0,0.00014999,2]
[425987267,1782076233000,-500.0,0.00014999,2]
[425987261,1782076233000,-500.0,0.00014999,2]
[425987264,1782076233000,-500.0,0.00014999,2]
[425987262,1782076233000,-500.0,0.00014999,2]
[425987269,1782076233000,-500.0,0.00014999,2]
[425987283,1782076237000,-150.0,0.00012426,2]
[425987285,1782076237000,-538.715813,0.00015,2]
[425987284,1782076237000,-129.48818024,0.00015,2]
[425987288,1782076237000,-848.01653846,0.00015,2]
[425987287,1782076237000,-4745.99700206,0.00015,2]
[425987289,1782076237000,-1104.52829031,0.00015,2]
[425987286,1782076237000,-627.61058977,0.00015,2]
[425987312,1782076240000,-311.0,0.00015,2]
[425987306,1782076240000,-5768.99522768,0.00015,2]
[425987307,1782076240000,-1116.26618307,0.00015,2]
[425987308,1782076240000,-2392206.53699793,0.00015,2]
[425987311,1782076240000,-153.0,0.00015,2]
[425987314,1782076240000,-179.54,0.00015,2]
[425987309,1782076240000,-314.0,0.00015,2]
[425987310,1782076240000,-316.0,0.00015,2]
[425987315,1782076240000,-334034.4345906,0.00015,2]
[425987316,1782076240000,-320.0,0.00015,2]
[425987319,1782076240000,-268.59324891,0.00015257,2]
[425987318,1782076240000,-232.88,0.00015068,2]
[425987313,1782076240000,-152.0,0.00015,2]
[425987317,1782076240000,-150.0,0.00015068,2]
[425987356,1782076241000,-500.0,0.00016438,2]
[425987354,1782076241000,-500.0,0.00016438,2]
[425987352,1782076241000,-500.0,0.00016438,2]
[425987358,1782076241000,-500.0,0.00016438,2]
[425987355,1782076241000,-500.0,0.00016438,2]
[425987357,1782076241000,-500.0,0.00016438,2]
[425987350,1782076241000,-500.0,0.00016438,2]
[425987361,1782076241000,-500.0,0.00016438,2]
[425987351,1782076241000,-233.30072632,0.00016438,2]
[425987349,1782076241000,-500.0,0.00016438,2]
[425987353,1782076241000,-500.0,0.00016438,2]
[425987359,1782076241000,-500.0,0.00016438,2]
[425987360,1782076241000,-500.0,0.00016438,2]
[425987368,1782076241000,-500.0,0.00016438,2]
[425987364,1782076241000,-500.0,0.00016438,2]
[425987370,1782076241000,-500.0,0.00016438,2]
[425987367,1782076241000,-500.0,0.00016438,2]
[425987366,1782076241000,-500.0,0.00016438,2]
[425987365,1782076241000,-500.0,0.00016438,2]
[425987369,1782076241000,-500.0,0.00016438,2]
[425987371,1782076241000,-500.0,0.00016438,2]
[425987376,1782076241000,-250.0,0.00016438,2]
[425987372,1782076241000,-500.0,0.00016438,2]
[425987375,1782076241000,-500.0,0.00016438,2]
[425987374,1782076241000,-500.0,0.00016438,2]
[425987363,1782076241000,-500.0,0.00016438,2]
[425987348,1782076241000,-500.0,0.00016438,2]
[425987329,1782076241000,-318.0,0.00015616,2]
[425987344,1782076241000,-500.0,0.00016438,2]
[425987380,1782076241000,-314.0,0.00016438,2]
[425987321,1782076241000,-151.0,0.00015616,2]
[425987322,1782076241000,-153.0,0.00015616,2]
[425987323,1782076241000,-150.0,0.00015616,2]
[425987320,1782076241000,-151.0,0.00015616,2]
[425987324,1782076241000,-151.0,0.00015616,2]
[425987330,1782076241000,-309.0,0.00015616,2]
[425987326,1782076241000,-314.0,0.00015616,2]
[425987335,1782076241000,-572.51,0.00016116,2]
[425987334,1782076241000,-316.0,0.00015656,2]
[425987325,1782076241000,-319.0,0.00015616,2]
[425987327,1782076241000,-313.0,0.00015616,2]
[425987340,1782076241000,-500.0,0.00016438,2]
[425987332,1782076241000,-312.0,0.00015623,2]
[425987333,1782076241000,-314.0,0.00015656,2]
[425987328,1782076241000,-316.0,0.00015616,2]
[425987336,1782076241000,-9999.99,0.00016116,2]
[425987338,1782076241000,-500.0,0.00016438,2]
[425987337,1782076241000,-13170.57731836,0.00016277,2]
[425987339,1782076241000,-500.0,0.00016438,2]
[425987341,1782076241000,-500.0,0.00016438,2]
[425987346,1782076241000,-500.0,0.00016438,2]
[425987343,1782076241000,-500.0,0.00016438,2]
[425987347,1782076241000,-500.0,0.00016438,2]
[425987345,1782076241000,-500.0,0.00016438,2]
[425987342,1782076241000,-500.0,0.00016438,2]
[425987331,1782076241000,-315.0,0.00015617,2]
[425987379,1782076241000,-318.0,0.00016438,2]
[425987362,1782076241000,-500.0,0.00016438,2]
[425987373,1782076241000,-500.0,0.00016438,2]
[425987410,1782076241000,-317.0,0.00017231,2]
[425987412,1782076241000,-662.41409633,0.00017377,2]
[425987408,1782076241000,-3985.773,0.00017131,2]
[425987420,1782076241000,-3712.1257281,0.00018423,2]
[425987419,1782076241000,-993.26322804,0.00018418,2]
[425987411,1782076241000,-473.83032846,0.00017257,2]
[425987417,1782076241000,-295.96,0.00018283,2]
[425987414,1782076241000,-1555.5,0.00017618,2]
[425987413,1782076241000,-615.74000298,0.00017431,2]
[425987418,1782076241000,-151.0,0.0001841,2]
[425987416,1782076241000,-1613.0535,0.00018166,2]
[425987415,1782076241000,-13170.57731836,0.00017655,2]
[425987409,1782076241000,-203.96,0.00017141,2]
[425987421,1782076241000,-37150.9196476,0.00018423,2]
[425987425,1782076241000,-1227.78638493,0.00018755,2]
[425987424,1782076241000,-1672.7364795,0.00018714,2]
[425987427,1782076241000,-13170.57731836,0.00019032,2]
[425987426,1782076241000,-500.0,0.00019032,2]
[425987430,1782076241000,-151.0,0.00019777,2]
[425987423,1782076241000,-28656.75,0.00018515,2]
[425987429,1782076241000,-166.632024,0.000196,2]
[425987422,1782076241000,-2081.6451524,0.00018423,2]
[425987431,1782076241000,-662.41409633,0.00019854,2]
[425987433,1782076241000,-295.96,0.00019945,2]
[425987434,1782076241000,-400.0,0.0002,2]
[425987435,1782076241000,-299.0,0.0002,2]
[425987428,1782076241000,-462.9394494,0.00019262,2]
[425987405,1782076241000,-151.0,0.00017037,2]
[425987378,1782076241000,-150.0,0.00016438,2]
[425987403,1782076241000,-319.0,0.00017037,2]
[425987404,1782076241000,-317.0,0.00017037,2]
[425987381,1782076241000,-150.0,0.00016438,2]
[425987377,1782076241000,-316.0,0.00016438,2]
[425987383,1782076241000,-318.0,0.00016438,2]
[425987393,1782076241000,-321.0,0.00016937,2]
[425987382,1782076241000,-312.0,0.00016438,2]
[425987394,1782076241000,-316.0,0.00016937,2]
[425987384,1782076241000,-318.0,0.00016438,2]
[425987387,1782076241000,-295.96,0.00016621,2]
[425987386,1782076241000,-232.88,0.00016438,2]
[425987392,1782076241000,-310.0,0.00016937,2]
[425987388,1782076241000,-1227.78638493,0.00016828,2]
[425987432,1782076241000,-217.03,0.000199,2]
[425987385,1782076241000,-150.0,0.00016438,2]
[425987389,1782076241000,-314.0,0.00016937,2]
[425987390,1782076241000,-314.0,0.00016937,2]
[425987406,1782076241000,-1500.0,0.0001707,2]
[425987401,1782076241000,-702.90658927,0.00016937,2]
[425987395,1782076241000,-151.0,0.00016937,2]
[425987396,1782076241000,-309.0,0.00016937,2]
[425987400,1782076241000,-315.0,0.00016937,2]
[425987402,1782076241000,-151.0,0.00017037,2]
[425987407,1782076241000,-179.54,0.000171,2]
[425987398,1782076241000,-151.0,0.00016937,2]
[425987399,1782076241000,-315.0,0.00016937,2]
[425987391,1782076241000,-152.0,0.00016937,2]
[425987397,1782076241000,-317.0,0.00016937,2]
[425987483,1782076242000,-151.0,0.00020906,2]
[425987488,1782076242000,-151.0,0.00020906,2]
[425987484,1782076242000,-151.0,0.00020906,2]
[425987476,1782076242000,-500.0,0.00020906,2]
[425987474,1782076242000,-151.0,0.00020906,2]
[425987477,1782076242000,-151.0,0.00020906,2]
[425987475,1782076242000,-151.0,0.00020906,2]
[425987481,1782076242000,-151.0,0.00020906,2]
[425987479,1782076242000,-151.0,0.00020906,2]
[425987486,1782076242000,-151.0,0.00020906,2]
[425987482,1782076242000,-151.0,0.00020906,2]
[425987490,1782076242000,-151.0,0.00020906,2]
[425987505,1782076242000,-299.0,0.00021,2]
[425987493,1782076242000,-151.0,0.00020906,2]
[425987492,1782076242000,-151.0,0.00020906,2]
[425987496,1782076242000,-151.0,0.00020906,2]
[425987499,1782076242000,-151.0,0.00020906,2]
[425987494,1782076242000,-151.0,0.00020906,2]
[425987498,1782076242000,-151.0,0.00020906,2]
[425987497,1782076242000,-151.0,0.00020906,2]
[425987501,1782076242000,-151.0,0.00020906,2]
[425987500,1782076242000,-151.0,0.00020906,2]
[425987502,1782076242000,-151.0,0.00020906,2]
[425987503,1782076242000,-151.0,0.00020906,2]
[425987462,1782076242000,-151.0,0.00020906,2]
[425987491,1782076242000,-151.0,0.00020906,2]
[425987458,1782076242000,-200.0,0.00020906,2]
[425987450,1782076242000,-151.0,0.00020229,2]
[425987460,1782076242000,-151.0,0.00020906,2]
[425987516,1782076242000,-14132.06,0.00021605,2]
[425987436,1782076242000,-589.0,0.0002,2]
[425987439,1782076242000,-157.0,0.0002,2]
[425987438,1782076242000,-368.0,0.0002,2]
[425987437,1782076242000,-152.0,0.0002,2]
[425987441,1782076242000,-3022.37359993,0.0002,2]
[425987440,1782076242000,-543.0,0.0002,2]
[425987442,1782076242000,-12216.66455569,0.0002,2]
[425987443,1782076242000,-152.0,0.0002,2]
[425987449,1782076242000,-179.54,0.000202,2]
[425987448,1782076242000,-2000.0,0.0002,7]
[425987445,1782076242000,-39613.11,0.0002,2]
[425987464,1782076242000,-151.0,0.00020906,2]
[425987451,1782076242000,-5954.57,0.00020232,2]
[425987444,1782076242000,-164.0,0.0002,2]
[425987447,1782076242000,-178.0,0.0002,2]
[425987452,1782076242000,-151.0,0.00020381,2]
[425987453,1782076242000,-13170.57731836,0.0002041,2]
[425987468,1782076242000,-151.0,0.00020906,2]
[425987470,1782076242000,-151.0,0.00020906,2]
[425987472,1782076242000,-151.0,0.00020906,2]
[425987454,1782076242000,-1227.78638493,0.00020683,2]
[425987471,1782076242000,-151.0,0.00020906,2]
[425987456,1782076242000,-150.0,0.000207,7]
[425987473,1782076242000,-151.0,0.00020906,2]
[425987466,1782076242000,-151.0,0.00020906,2]
[425987446,1782076242000,-171.0,0.0002,2]
[425987504,1782076242000,-151.0,0.00020906,2]
[425987508,1782076242000,-157.0,0.00021,2]
[425987564,1782076242000,-1360.0,0.00022141,2]
[425987539,1782076242000,-291.72610934,0.00021921,2]
[425987540,1782076242000,-1738.79625699,0.00021921,2]
[425987544,1782076242000,-6812.03917255,0.00021924,2]
[425987545,1782076242000,-200.0,0.0002195,2]
[425987543,1782076242000,-151.0,0.00021924,15]
[425987546,1782076242000,-450.0,0.00022,2]
[425987542,1782076242000,-151.0,0.00021924,15]
[425987541,1782076242000,-3712.1257281,0.00021922,2]
[425987548,1782076242000,-589.0,0.00022,2]
[425987547,1782076242000,-299.0,0.00022,2]
[425987561,1782076242000,-150.166,0.00022141,2]
[425987550,1782076242000,-157.0,0.00022,2]